bitfinex/quotes_ETHUSD_20250322
["timestamp","ask_amount","ask_price","bid_price","bid_amount"]
[1742671444354,5.48495701,1998.9,1998.6,9.62234]
[1742671446665,5.48495701,1998.9,1998.5,31.45266]
[1742671446865,10.82222,1998.8,1998.5,26.449]
[1742671447156,8.02772603,1998.7,1998.5,26.449]
[1742671447940,5.48515962,1998.7,1998.5,26.449]
[1742671450369,10.48861962,1998.7,1998.5,26.449]
[1742671450555,10.03744035,1998.6,1998.5,26.449]
[1742671450741,5.00425,1998.3,1998.0,5.76399]
[1742671450945,0.47945067,1998.2,1997.9,36.07606]
[1742671451954,0.47945067,1998.2,1997.9,31.45706]
[1742671452171,0.47945067,1998.2,1997.9,36.07606]
[1742671454278,5.48409067,1998.2,1997.9,31.071]
[1742671454500,6.26893112,1998.2,1997.9,26.452]
[1742671454787,9.24224035,1998.0,1997.9,26.452]
[1742671454955,9.72014988,1998.0,1997.9,26.452]
[1742671455443,5.48290953,1998.0,1997.9,26.452]
[1742671457816,9.72014988,1998.0,1997.9,26.452]
[1742671458183,10.51684988,1998.0,1997.9,26.452]
[1742671458384,12.06901987,1998.0,1997.9,26.452]
[1742671459118,7.83177952,1998.0,1997.7,5.00575]
[1742671459418,1.27460953,1998.0,1997.7,5.00575]
[1742671460715,1.27460953,1998.0,1997.8,5.0055]
[1742671460919,0.47790953,1998.0,1997.8,5.0055]
[1742671461124,0.47790953,1998.0,1997.7,5.00562]
[1742671461429,0.47790953,1998.0,1997.7,10.01126]
[1742671462282,0.47790953,1998.0,1997.7,5.00562]
[1742671462721,0.47790953,1998.0,1997.6,5.76499]
[1742671463218,5.48296953,1998.0,1997.6,10.77098]
[1742671463519,5.48296953,1998.0,1997.6,5.76499]
[1742671465379,10.48818953,1998.0,1997.6,5.76499]
[1742671466194,5.48296953,1998.0,1997.6,5.76499]
[1742671469134,0.47790953,1998.0,1997.6,0.759]
[1742671469440,0.47790953,1998.0,1997.7,5.00554]
[1742671472546,5.48295953,1998.0,1997.7,5.00554]
[1742671476749,5.48295953,1998.0,1997.6,5.76493]
[1742671476949,6.27265953,1998.0,1997.6,5.76493]
[1742671477554,11.27785953,1998.0,1997.6,5.00593]
[1742671477754,5.00528,1997.9,1997.6,5.00593]
[1742671478152,0.47575734,1997.8,1997.6,5.00593]
[1742671484580,0.47575734,1997.8,1997.6,10.01177]
[1742671484777,5.79475,1998.0,1997.6,10.01177]
[1742671485080,0.47647242,1997.9,1997.6,10.01177]
[1742671485572,0.47647242,1997.9,1997.6,5.00584]
[1742671486577,5.48174242,1997.9,1997.6,5.00584]
[1742671486973,10.48717242,1997.9,1997.5,36.08917]
[1742671487175,5.48174242,1997.9,1997.6,4.621]
[1742671487341,10.48723242,1997.9,1997.6,4.621]
[1742671487879,5.48174242,1997.9,1997.6,4.621]
[1742671488068,0.47647242,1997.9,1997.6,9.62689]
[1742671488378,0.47647242,1997.9,1997.7,5.82523]
[1742671489682,0.47647242,1997.9,1997.7,5.00573]
[1742671489883,0.47647242,1997.9,1997.6,9.62689]
[1742671494588,5.48172242,1997.9,1997.6,9.62689]
[1742671498813,0.7753,1997.7,1997.6,4.621]
[1742671499168,5.78105,1997.7,1997.5,31.084]
[1742671499479,0.47698679,1997.6,1997.5,31.084]
[1742671499798,5.78105,1997.7,1997.5,31.084]
[1742671499980,0.47694954,1997.6,1997.5,31.084]
[1742671500180,5.78105,1997.7,1997.5,31.084]
[1742671500385,0.47694954,1997.6,1997.5,31.084]
[1742671500586,0.7753,1997.7,1997.5,31.084]
[1742671500772,0.47694954,1997.6,1997.5,31.084]
[1742671500974,5.78107,1997.7,1997.5,31.084]
[1742671501293,0.47694954,1997.6,1997.5,31.084]
[1742671501606,5.78107,1997.7,1997.5,31.084]
[1742671501906,5.48294954,1997.6,1997.5,31.084]
[1742671502705,5.48294954,1997.6,1997.5,26.463]
[1742671503007,8.02732774,1997.6,1997.5,26.463]
[1742671503808,5.48294954,1997.6,1997.5,26.463]
[1742671505705,0.47694954,1997.6,1997.5,26.463]
[1742671506104,5.00565,1997.8,1997.5,31.46921]
[1742671506277,0.47598087,1997.6,1997.5,31.46921]
[1742671506480,5.00565,1997.8,1997.5,26.463]
[1742671506712,0.47598087,1997.6,1997.5,26.463]
[1742671506881,5.00565,1997.8,1997.5,26.463]
[1742671507081,0.47598087,1997.6,1997.5,26.463]
[1742671507276,5.00565,1997.8,1997.5,26.463]
[1742671507516,0.47598087,1997.6,1997.5,34.0136282]
[1742671507813,0.7753,1997.9,1997.6,5.00594]
[1742671508014,5.78056,1997.9,1997.6,5.00594]
[1742671509109,3.3196782,1998.1,1997.6,2.59443361]
[1742671509286,5.78014,1998.1,1997.7,9.62667]
[1742671509490,8.3245182,1998.1,1997.7,9.62667]
[1742671509804,5.00501,1998.0,1997.7,9.62667]
[1742671510409,10.01019,1998.0,1997.7,4.621]
[1742671510607,5.00528,1997.9,1997.7,4.621]
[1742671511723,5.00554,1997.8,1997.5,31.46924]
[1742671511925,5.00554,1997.8,1997.5,36.09024]
[1742671512124,8.3691882,1997.9,1997.5,36.09024]
[1742671512326,0.8195,1997.9,1997.5,38.6346182]
[1742671512490,5.82427,1998.1,1997.7,5.00563]
[1742671512822,7.5493882,1998.0,1997.5,36.09018]
[1742671513120,5.82497,1997.9,1997.5,36.09018]
[1742671513502,10.83042,1997.9,1997.5,36.09018]
[1742671513701,5.00588,1997.7,1997.5,31.084]
[1742671514031,0.8195,1997.6,1997.5,31.084]
[1742671514518,5.8255,1997.6,1997.5,26.463]
[1742671515421,0.8195,1997.6,1997.5,26.463]
[1742671515589,5.82504,1997.8,1997.5,26.463]
[1742671515800,7.5493782,1998.0,1997.6,5.00584]
[1742671515991,10.82966,1998.0,1997.6,5.00584]
[1742671516321,5.8245,1998.0,1997.6,5.00584]
[1742671516847,0.47657416,1997.9,1997.6,5.00584]
[1742671518044,5.48182416,1997.9,1997.6,5.00584]
[1742671518645,0.47657416,1997.9,1997.6,10.01169]
[1742671518835,0.47657416,1997.9,1997.7,5.00558]
[1742671520344,0.47657416,1997.9,1997.8,5.0055]
[1742671521034,5.00475,1998.1,1997.8,5.0055]
[1742671521238,0.47689609,1998.0,1997.8,5.0055]
[1742671521426,0.47689609,1998.0,1997.7,5.00558]
[1742671521626,1.29639609,1998.0,1997.7,5.00558]
[1742671523347,0.47689609,1998.0,1997.7,5.00558]
[1742671523848,0.47689609,1998.0,1997.8,5.00549]
[1742671524719,0.47689609,1998.0,1997.7,5.84131234]
[1742671525064,0.47689609,1998.0,1997.8,5.00549]
[1742671526618,13.75935,1998.2,1997.8,9.62649]
[1742671526948,0.47712478,1998.1,1997.8,9.62649]
[1742671527954,5.48187478,1998.1,1997.8,9.62649]
[1742671528375,6.90552526,1998.1,1997.8,9.12649]
[1742671530229,1.90077526,1998.1,1997.8,9.12649]
[1742671530426,0.47712478,1998.1,1997.8,9.12649]
[1742671532522,5.48189478,1998.1,1997.8,9.12649]
[1742671532723,5.48189478,1998.1,1997.8,4.621]
[1742671533357,5.48189478,1998.1,1997.7,5.29133]
[1742671533560,0.47712478,1998.1,1997.7,0.2856]
[1742671533739,0.47712478,1998.1,1998.0,9.21371787]
[1742671534060,0.7872,1998.6,1998.5,5.00375]
[1742671534260,0.7872,1998.6,1998.4,5.00395]
[1742671534436,6.20107941,1998.6,1998.2,5.00449]
[1742671534627,1.19754941,1998.6,1998.3,5.00421]
[1742671534827,0.41034941,1998.6,1998.2,9.62534]
[1742671535026,5.0034,1998.7,1998.2,9.62534]
[1742671535270,0.91091622,1998.6,1998.2,9.62534]
[1742671535581,0.91091622,1998.6,1998.2,9.67537804]
[1742671535877,0.41057622,1998.6,1998.3,5.00409]
[1742671536230,0.41057622,1998.6,1998.3,10.05825607]
[1742671536528,5.7902,1998.8,1998.3,10.86315607]
[1742671536781,0.41070232,1998.5,1998.3,10.81312]
[1742671536925,5.7902,1998.8,1998.4,5.00399]
[1742671537125,0.57902,1998.7,1998.4,5.00399]
[1742671537774,0.57902,1998.7,1998.3,5.80911]
[1742671539976,0.57902,1998.7,1998.3,5.85914609]
[1742671540176,0.7872,1998.6,1998.3,0.55]
[1742671540366,5.00388,1998.5,1998.2,26.461]
[1742671540569,6.50737179,1998.5,1998.2,31.081]
[1742671542666,1.50349179,1998.5,1998.2,31.081]
[1742671544296,6.50729179,1998.5,1998.2,31.081]
[1742671544500,5.79072,1998.6,1998.3,0.55]
[1742671546164,10.03103787,1998.6,1998.3,0.55]
[1742671546459,5.00386,1998.5,1998.3,0.55]
[1742671546883,0.41207993,1998.4,1998.3,0.55]
[1742671547080,15.03464787,1998.6,1998.3,0.55]
[1742671547081,10.03103787,1998.6,1998.3,0.55]
[1742671547390,1.41555657,1998.5,1998.3,0.55]
[1742671549447,6.41930657,1998.5,1998.3,0.55]
[1742671549645,1.41555657,1998.5,1998.3,0.55]
[1742671551866,6.41932657,1998.5,1998.3,0.55]
[1742671555155,5.00438,1998.3,1998.0,26.458]
[1742671555473,6.7498128,1998.2,1998.0,26.458]
[1742671560102,1.7453128,1998.2,1998.1,0.55]
[1742671561187,6.7498128,1998.2,1998.1,0.55]
[1742671561504,1.7453128,1998.2,1998.1,0.55]
[1742671561671,1.2448748,1998.2,1998.1,0.55]
[1742671562802,6.2493748,1998.2,1998.1,0.55]
[1742671563584,1.2448748,1998.2,1998.1,0.55]
[1742671568207,0.4120748,1998.2,1998.1,0.55]
[1742671568594,10.84103,1998.4,1998.1,0.55]
[1742671568796,0.41045329,1998.2,1998.1,0.55]
[1742671569004,1.084103,1998.3,1998.1,0.55]
[1742671569223,0.41040792,1998.2,1998.1,0.55]
[1742671575305,0.41040792,1998.2,1998.1,5.00475]
[1742671575510,0.41040792,1998.2,1998.1,6.31605]
[1742671575902,1.00310379,1998.5,1998.1,6.31605]
[1742671576111,1.00310379,1998.5,1998.3,0.55]
[1742671577115,0.41130619,1998.4,1998.3,0.55]
[1742671577477,1.05313219,1998.4,1998.3,0.55]
[1742671593136,6.05713219,1998.4,1998.3,0.55]
[1742671609449,1.05313219,1998.4,1998.2,0.55]
[1742671609654,0.41130619,1998.4,1998.2,0.55]
[1742671612256,5.41532619,1998.4,1998.2,0.55]
[1742671619061,0.41130619,1998.4,1998.2,0.55]
[1742671619756,0.41130619,1998.4,1998.3,0.7815]
[1742671619956,5.00352,1998.6,1998.4,0.55]
[1742671620257,0.500352,1998.5,1998.4,0.55]
[1742671620463,5.504102,1998.5,1998.4,0.55]
[1742671621765,5.91585614,1998.5,1998.4,0.55]
[1742671623568,5.91585614,1998.5,1998.3,0.7815]
[1742671623569,5.91585614,1998.5,1998.2,0.55]
[1742671623931,8.45894958,1998.5,1998.2,0.55]
[1742671624157,3.45519958,1998.5,1998.2,0.55]
[1742671624363,5.41560414,1998.5,1998.2,0.55]
[1742671628464,0.41175414,1998.5,1998.2,8.09746344]
[1742671628670,0.41175414,1998.5,1998.4,0.55]
[1742671628873,5.0031,1998.8,1998.4,8.87859344]
[1742671629049,5.0031,1998.8,1998.5,0.7815]
[1742671629249,0.40921716,1998.7,1998.5,0.7815]
[1742671629463,0.40921716,1998.7,1998.6,0.55]
[1742671629773,5.00286,1998.9,1998.6,0.55]
[1742671629949,0.40921716,1998.7,1998.6,0.55]
[1742671630272,13.80373978,1998.9,1998.6,0.55]
[1742671630439,0.40921716,1998.7,1998.6,0.55]
[1742671630638,12.54889344,1998.9,1998.6,0.55]
[1742671630835,0.40921716,1998.7,1998.6,0.55]
[1742671631067,12.54889344,1998.9,1998.6,0.55]
[1742671631260,0.40921716,1998.7,1998.6,0.55]
[1742671631438,12.54889344,1998.9,1998.6,0.55]
[1742671631635,0.40921716,1998.7,1998.6,0.55]
[1742671631839,12.54889344,1998.9,1998.6,0.55]
[1742671632065,0.40921716,1998.7,1998.6,0.55]
[1742671632571,12.54889344,1998.9,1998.6,0.55]
[1742671632773,0.40921716,1998.7,1998.6,0.55]
[1742671632960,12.54889344,1998.9,1998.6,0.55]
[1742671633162,0.40921716,1998.7,1998.6,0.55]
[1742671633362,12.54889344,1998.9,1998.6,0.55]
[1742671633545,0.40921716,1998.7,1998.6,0.55]
[1742671633750,7.54595344,1998.9,1998.6,0.55]
[1742671633961,0.4094085,1998.8,1998.6,0.55]
[1742671634469,10.00582,1998.9,1998.6,0.55]
[1742671634975,0.4094085,1998.8,1998.6,0.55]
[1742671635342,10.00581,1998.9,1998.6,0.55]
[1742671635544,0.4094085,1998.8,1998.6,0.55]
[1742671635745,10.00581,1998.9,1998.6,0.55]
[1742671636075,0.4094085,1998.8,1998.6,0.55]
[1742671636274,0.4094085,1998.8,1998.6,1.183521]
[1742671636488,5.00286,1998.9,1998.6,1.183521]
[1742671636976,0.4094085,1998.8,1998.6,1.183521]
[1742671637446,10.00581,1998.9,1998.6,0.55]
[1742671637642,0.40921716,1998.7,1998.6,0.55]
[1742671637843,10.00581,1998.9,1998.6,0.55]
[1742671638146,0.4094085,1998.8,1998.6,0.55]
[1742671638342,10.00581,1998.9,1998.6,0.55]
[1742671638543,0.4094085,1998.8,1998.6,0.55]
[1742671638841,12.54890344,1998.9,1998.6,0.55]
[1742671639042,0.40921716,1998.7,1998.6,0.55]
[1742671639247,10.00581,1998.9,1998.6,0.55]
[1742671639454,0.40921716,1998.7,1998.6,0.55]
[1742671639977,10.00581,1998.9,1998.6,0.55]
[1742671640176,0.40921716,1998.7,1998.6,0.55]
[1742671640474,5.00286,1998.9,1998.6,0.55]
[1742671640947,0.4103952,1998.8,1998.6,0.55]
[1742671641147,10.0058,1998.9,1998.6,0.55]
[1742671641339,0.4103952,1998.8,1998.6,0.55]
[1742671641544,11.26068934,1998.9,1998.6,0.55]
[1742671641844,0.4103952,1998.8,1998.6,0.55]
[1742671642176,11.26068934,1998.9,1998.6,0.55]
[1742671642339,0.41020386,1998.7,1998.6,0.55]
[1742671642540,11.26068934,1998.9,1998.6,0.55]
[1742671642770,1.53646413,1998.8,1998.6,0.55]
[1742671644980,0.4103952,1998.8,1998.6,0.55]
[1742671645569,0.41020386,1998.7,1998.6,0.55]
[1742671646492,10.0058,1998.9,1998.6,0.55]
[1742671646679,0.41020386,1998.7,1998.6,0.55]
[1742671646866,10.0058,1998.9,1998.6,0.55]
[1742671647066,0.41020386,1998.7,1998.6,0.55]
[1742671647269,10.0058,1998.9,1998.6,0.55]
[1742671647575,12.54889344,1998.9,1998.6,0.55]
[1742671647775,0.4103952,1998.8,1998.6,0.55]
[1742671648176,12.54889344,1998.9,1998.6,0.55]
[1742671648354,0.41020386,1998.7,1998.6,0.55]
[1742671648555,13.80378278,1998.9,1998.6,0.55]
[1742671648866,0.4103952,1998.8,1998.6,0.55]
[1742671649245,11.26068934,1998.9,1998.6,0.55]
[1742671649457,0.41020386,1998.7,1998.6,0.55]
[1742671649974,11.26068934,1998.9,1998.6,0.55]
[1742671650156,0.41020386,1998.7,1998.6,0.55]
[1742671650574,10.00575,1998.9,1998.6,0.55]
[1742671650771,0.41020386,1998.7,1998.6,0.55]
[1742671650981,5.00286,1998.9,1998.6,0.55]
[1742671651180,0.41022286,1998.7,1998.6,0.55]
[1742671651463,5.00286,1998.9,1998.6,0.55]
[1742671651790,11.26062734,1998.9,1998.6,0.55]
[1742671651991,0.4104142,1998.8,1998.6,0.55]
[1742671652362,13.80372078,1998.9,1998.6,0.55]
[1742671652564,0.4104142,1998.8,1998.6,0.55]
[1742671652793,13.80372078,1998.9,1998.6,0.55]
[1742671653089,0.41022286,1998.7,1998.6,0.55]
[1742671653292,6.38338208,1998.8,1998.6,0.55]
[1742671653597,0.41022286,1998.7,1998.6,0.55]
[1742671655880,7.9565963,1998.7,1998.3,0.759]
[1742671656191,7.9565963,1998.7,1998.2,31.074]
[1742671656192,5.00409,1998.4,1998.2,31.074]
[1742671656393,7.54718344,1998.4,1998.2,26.456]
[1742671656598,5.41370729,1998.3,1998.2,26.456]
[1742671657665,5.00527,1997.9,1997.6,0.759]
[1742671657896,8.33936344,1997.9,1997.5,26.456]
[1742671658092,5.4132931,1997.8,1997.5,26.456]
[1742671658298,12.96207654,1997.8,1997.5,26.456]
[1742671658599,7.95638654,1997.8,1997.6,0.55]
[1742671658795,12.96210654,1997.8,1997.6,0.55]
[1742671659009,7.95638654,1997.8,1997.5,26.456]
[1742671659297,5.00575,1997.7,1997.5,26.456]
[1742671659599,0.40656065,1997.6,1997.5,26.456]
[1742671659898,5.00575,1997.7,1997.6,0.55]
[1742671660201,5.41250221,1997.7,1997.6,0.55]
[1742671661107,0.40675221,1997.7,1997.6,0.55]
[1742671664170,5.41250221,1997.7,1997.6,0.55]
[1742671670381,0.40675221,1997.7,1997.6,0.55]
[1742671677093,5.00551,1997.8,1997.6,0.55]
[1742671677294,0.40502488,1997.7,1997.6,0.55]
[1742671680022,5.41085488,1997.7,1997.5,0.55]
[1742671683606,0.40502488,1997.7,1997.5,0.55]
[1742671686432,0.40502488,1997.7,1997.5,5.55624]
[1742671686608,8.33939344,1997.9,1997.5,5.55624]
[1742671686819,0.40502653,1997.8,1997.5,5.55624]
[1742671690135,5.41054653,1997.8,1997.5,0.55]
[1742671691039,7.95363997,1997.8,1997.5,0.55]
[1742671693635,5.41054653,1997.8,1997.5,0.55]
[1742671695243,7.95363997,1997.8,1997.5,0.55]
[1742671703642,7.95363997,1997.8,1997.5,5.55619]
[1742671703643,0.40502653,1997.8,1997.5,5.55619]
[1742671704844,0.40502653,1997.8,1997.7,5.00575]
[1742671705020,5.00501,1998.0,1997.7,5.00575]
[1742671705343,0.40518431,1997.9,1997.8,5.5554]
[1742671705809,9.36326884,1998.3,1997.9,5.00505]
[1742671706014,0.4057324,1998.2,1998.0,5.00492]
[1742671706630,0.4057324,1998.2,1998.0,5.00488]
[1742671707143,0.4057324,1998.2,1998.0,5.00482]
[1742671707511,5.00411,1998.4,1998.0,5.00482]
[1742671707712,0.40594802,1998.1,1998.0,5.55482]
[1742671707935,7.54720344,1998.4,1998.0,5.55482]
[1742671708134,0.40594802,1998.1,1998.0,5.55482]
[1742671708336,7.54720344,1998.4,1998.0,5.55482]
[1742671708537,0.40594802,1998.1,1998.0,5.55482]
[1742671708725,7.54720344,1998.4,1998.0,5.55482]
[1742671708925,0.40594802,1998.1,1998.0,5.55482]
[1742671709126,7.54720344,1998.4,1998.0,5.55482]
[1742671709315,0.40594802,1998.1,1998.0,5.55482]
[1742671709517,7.54720344,1998.4,1998.0,10.55967]
[1742671709754,0.40603876,1998.1,1998.0,10.55967]
[1742671709952,7.54720344,1998.4,1998.0,10.55967]
[1742671710448,0.40637633,1998.3,1998.0,10.55967]
[1742671710614,5.00411,1998.4,1998.0,10.55967]
[1742671710817,0.40633097,1998.3,1998.0,10.55967]
[1742671711013,5.00411,1998.4,1998.0,10.55967]
[1742671711231,0.4064217,1998.3,1998.0,10.55967]
[1742671711431,7.54720344,1998.4,1998.0,10.55967]
[1742671711617,0.4064217,1998.3,1998.0,10.55967]
[1742671712060,0.40623024,1998.2,1998.1,5.00473]
[1742671712358,2.54309344,1998.4,1998.1,5.00473]
[1742671712561,0.40623024,1998.2,1998.1,5.00473]
[1742671712850,0.40618487,1998.2,1998.1,5.00473]
[1742671713050,2.54309344,1998.4,1998.1,5.00473]
[1742671713239,0.40613951,1998.2,1998.1,5.00473]
[1742671713439,2.54309344,1998.4,1998.1,5.00473]
[1742671713757,0.40623024,1998.2,1998.1,5.00473]
[1742671713921,2.54309344,1998.4,1998.1,5.00473]
[1742671714255,2.54309344,1998.4,1998.1,8.00473]
[1742671714422,0.40624024,1998.3,1998.1,8.00473]
[1742671714625,2.54309344,1998.4,1998.1,8.00473]
[1742671714954,0.40633097,1998.3,1998.1,8.00473]
[1742671715335,2.54309344,1998.4,1998.1,8.00473]
[1742671715653,0.40633097,1998.3,1998.1,8.00473]
[1742671715820,2.54309344,1998.4,1998.1,8.00473]
[1742671716022,0.40655779,1998.3,1998.1,8.00473]
[1742671716220,2.54309344,1998.4,1998.1,5.00473]
[1742671716421,0.40660316,1998.3,1998.1,5.00473]
[1742671716621,2.54309344,1998.4,1998.1,5.00473]
[1742671716853,0.40664852,1998.3,1998.1,5.00473]
[1742671717056,2.54309344,1998.4,1998.1,5.00473]
[1742671717249,0.40761677,1998.3,1998.1,5.00473]
[1742671717552,2.54309344,1998.4,1998.1,5.00473]
[1742671717738,0.40742533,1998.2,1998.1,5.00473]
[1742671717941,2.54309344,1998.4,1998.1,5.00473]
[1742671718156,0.40757141,1998.3,1998.1,5.00473]
[1742671718531,2.54309344,1998.4,1998.1,5.00473]
[1742671718832,0.40761677,1998.3,1998.1,5.00473]
[1742671719031,2.54309344,1998.4,1998.1,5.00473]
[1742671719232,0.40757141,1998.3,1998.1,5.00473]
[1742671719433,2.54309344,1998.4,1998.1,5.00473]
[1742671719634,0.40757141,1998.3,1998.1,5.00473]
[1742671719957,2.54309344,1998.4,1998.1,5.00473]
[1742671720122,0.40737996,1998.2,1998.1,5.00473]
[1742671720325,2.54309344,1998.4,1998.1,5.00464]
[1742671720826,0.40761677,1998.3,1998.1,5.00464]
[1742671721028,2.54309344,1998.4,1998.1,5.00464]
[1742671721229,0.40757141,1998.3,1998.1,5.76204]
[1742671721543,3.33409344,1998.5,1998.3,5.00405]
[1742671721732,3.0,1998.5,1998.2,10.55879]
[1742671721937,2.54309344,1998.5,1998.2,10.55879]
[1742671722137,2.54309344,1998.5,1998.2,5.55434]
[1742671726670,0.4078082,1998.4,1998.2,5.55434]
[1742671732271,0.4078082,1998.4,1998.2,10.5587]
[1742671732776,0.4078082,1998.4,1998.2,5.55434]
[1742671733676,0.4078082,1998.4,1998.3,5.00425]
[1742671734045,5.54309344,1998.6,1998.3,5.00425]
[1742671734375,0.40866388,1998.5,1998.3,5.00425]
[1742671737378,0.40866388,1998.5,1998.4,5.004]
[1742671737540,0.40866388,1998.5,1998.4,5.554]
[1742671737744,0.7561,1998.7,1998.4,5.554]
[1742671737941,0.40881571,1998.5,1998.4,5.554]
[1742671738168,0.7561,1998.7,1998.4,5.554]
[1742671738367,0.40827137,1998.5,1998.4,5.554]
[1742671738551,3.29919344,1998.7,1998.4,5.554]
[1742671738764,0.40842318,1998.5,1998.4,5.554]
[1742671738948,2.54309344,1998.6,1998.4,5.554]
[1742671739246,0.40855928,1998.5,1998.4,5.554]
[1742671740343,3.29919344,1998.7,1998.4,5.554]
[1742671740548,0.40842318,1998.5,1998.4,5.554]
[1742671740779,3.29919344,1998.7,1998.4,5.554]
[1742671740978,0.40846854,1998.5,1998.4,5.554]
[1742671741180,2.54309344,1998.6,1998.4,5.554]
[1742671741369,0.40846854,1998.5,1998.4,5.554]
[1742671741867,0.4085139,1998.5,1998.4,5.554]
[1742671742041,3.29919344,1998.7,1998.4,5.554]
[1742671742247,0.40870532,1998.6,1998.4,5.554]
[1742671745052,0.40870532,1998.6,1998.4,10.55784]
[1742671745381,0.40870532,1998.6,1998.5,5.55375]
[1742671745750,3.32649344,1998.9,1998.6,5.00337]
[1742671745945,4.34723395,1999.1,1998.8,5.00297]
[1742671746385,3.32649344,1999.1,1998.8,5.00297]
[1742671746776,3.32649344,1999.1,1998.7,5.00322]
[1742671746777,3.32649344,1999.1,1998.7,10.00627]
[1742671747379,3.32649344,1999.1,1998.8,5.00291]
[1742671747578,3.32649344,1999.1,1998.9,5.00267]
[1742671747778,3.32649344,1999.1,1998.8,5.00291]
[1742671748495,2.54309344,1999.0,1998.8,5.00291]
[1742671751363,3.32649344,1999.1,1998.8,10.00575]
[1742671751704,3.32649344,1999.1,1998.9,5.00252]
[1742671752195,3.32649344,1999.1,1998.8,5.00292]
[1742671752591,3.32649344,1999.1,1998.8,10.00574]
[1742671752795,2.54309344,1999.1,1998.8,10.00574]
[1742671753465,2.54309344,1999.1,1998.8,5.00282]
[1742671754398,2.54309344,1999.1,1998.8,10.00566]
[1742671755087,2.54309344,1999.1,1998.9,5.00267]
[1742671756700,0.41009222,1999.0,1998.9,5.00267]
[1742671757708,0.41009222,1999.0,1998.9,10.0053]
[1742671757872,3.34619344,1999.2,1998.9,10.0053]
[1742671758069,0.41037442,1999.1,1998.9,10.0053]
[1742671759306,0.41037442,1999.1,1999.0,5.0025]
[1742671760801,0.41037442,1999.1,1998.9,5.00263]
[1742671761181,2.95346786,1999.1,1998.9,5.00263]
[1742671762668,2.54309344,1999.0,1998.9,5.00263]
[1742671762901,2.95336708,1999.0,1998.9,5.00263]
[1742671765409,0.41027364,1999.0,1998.9,5.00263]
[1742671779208,2.95336708,1999.0,1998.9,5.00263]
[1742671779391,0.41027364,1999.0,1998.9,5.00263]
[1742671797365,0.41027364,1999.0,1998.9,5.55263]
[1742671798771,3.34619344,1999.2,1999.0,5.00235]
[1742671799570,3.34619344,1999.2,1999.0,10.0047]
[1742671799780,3.34619344,1999.2,1999.0,10.00472]
[1742671799942,2.54309344,1999.2,1999.1,5.00225]
[1742671800696,2.54309344,1999.2,1999.0,10.00471]
[1742671800884,2.54309344,1999.2,1999.0,5.00235]
[1742671806898,2.54309344,1999.1,1998.8,5.00294]
[1742671807198,2.54309344,1999.0,1998.8,5.00294]
[1742671807367,2.54309344,1999.0,1998.8,10.00575]
[1742671807770,2.54309344,1999.0,1998.8,5.00281]
[1742671808069,2.54309344,1999.0,1998.8,10.00566]
[1742671808579,2.54309344,1999.0,1998.8,5.00281]
[1742671811463,2.04309344,1999.0,1998.8,5.00281]
[1742671812280,2.54309344,1998.9,1998.8,5.55281]
[1742671813303,2.54309344,1999.0,1998.8,5.55281]
[1742671815199,2.54309344,1999.1,1998.8,5.55281]
[1742671815405,3.35839344,1999.2,1999.0,5.0025]
[1742671815902,4.82962889,1999.4,1999.1,5.00225]
[1742671816203,0.99942889,1999.4,1999.3,5.00175]
[1742671816371,3.54252233,1999.4,1999.2,5.00192]
[1742671816572,3.54252233,1999.4,1999.2,10.00384]
[1742671817701,0.41089301,1999.3,1999.2,10.00384]
[1742671817908,3.54252233,1999.4,1999.2,10.00384]
[1742671818119,0.41093836,1999.3,1999.2,10.00384]
[1742671818329,5.83122,1999.6,1999.2,10.00384]
[1742671818492,8.00075,1999.7,1999.1,0.8227]
[1742671818493,2.54309344,1999.5,1999.3,5.00161]
[1742671818825,2.04309344,1999.5,1999.3,10.00314]
[1742671819107,2.04309344,1999.5,1999.3,5.00153]
[1742671819779,2.04309344,1999.5,1999.1,6.37492]
[1742671819780,2.54309344,1999.4,1999.1,6.37492]
[1742671819980,2.54309344,1999.3,1999.1,5.00222]
[1742671820290,2.54309344,1999.2,1999.1,5.55222]
[1742671820489,2.54309344,1999.2,1998.9,15.44287]
[1742671820697,2.54309344,1999.1,1999.0,0.55]
[1742671820890,2.54309344,1999.1,1998.9,4.615]
[1742671821094,2.54309344,1999.0,1998.8,5.00299]
[1742671821511,3.37329344,1998.9,1998.5,0.8227]
[1742671821679,2.54309344,1998.6,1998.5,5.00358]
[1742671821880,2.54309344,1998.7,1998.5,5.55358]
[1742671822286,2.54309344,1998.8,1998.5,5.55358]
[1742671822919,2.54309344,1998.8,1998.6,5.00346]
[1742671823414,2.54309344,1998.9,1998.7,5.00325]
[1742671823598,2.54309344,1999.0,1998.7,5.00314]
[1742671823800,2.54309344,1998.9,1998.7,5.00314]
[1742671824621,2.54309344,1998.8,1998.7,0.55]
[1742671825119,4.23702202,1998.9,1998.7,0.55]
[1742671825416,4.23702202,1998.9,1998.6,5.00342]
[1742671825720,4.23702202,1998.9,1998.6,0.55]
[1742671825916,4.23702202,1998.7,1998.5,5.00366]
[1742671826089,4.23702202,1998.7,1998.5,0.55]
[1742671826418,4.23702202,1998.6,1998.5,0.55]
[1742671826621,4.23702202,1998.7,1998.5,0.55]
[1742671827823,0.40849284,1998.6,1998.5,0.55]
[1742671830102,5.06722202,1998.8,1998.5,0.55]
[1742671830303,0.40877493,1998.7,1998.5,0.55]
[1742671835036,0.40877493,1998.7,1998.4,31.45498]
[1742671837328,0.40877493,1998.7,1998.4,5.00398]
[1742671845234,2.95127712,1998.7,1998.4,5.00398]
[1742671851340,2.54250219,1998.6,1998.4,3.0]
[1742671851505,0.39920249,1998.5,1998.3,5.55423]
[1742671858607,0.39920249,1998.5,1998.2,5.00449]
[1742671859009,2.54250219,1998.4,1998.1,5.55463]